[Event "Titled Tuesday Blitz June 21 Late 2022"]
[White "Perez Leiva, Jerzy Jesus"]
[Black "Coelho, Ramyres Santana"]
[WhiteFideId "3524337"]
[BlackFideId "2120690"]
[WhiteElo "2287"]
[BlackElo "1888"]
[Result "0-1"]
[Round "02"]
[TimeControl "180+1"]
[Date "2022.06.22"]
[WhiteClock "0:00:04"]
[BlackClock "0:00:22"]

1. e4 {[%clk 0:02:17]}  c5 {[%clk 0:02:38]} 2. Nf3 {[%clk 0:02:12]}  d6 {[%clk 0:02:37]} 3. d4 {[%clk 0:02:12]}  cxd4 {[%clk 0:02:38]} 4. Nxd4 {[%clk 0:02:13]}  Nf6 {[%clk 0:02:34]} 5. Nc3 {[%clk 0:02:13]}  a6 {[%clk 0:02:34]} 6. Be3 {[%clk 0:02:12]}  e6 {[%clk 0:02:34]} 7. f3 {[%clk 0:01:48]}  b5 {[%clk 0:02:34]} 8. Qd2 {[%clk 0:01:48]}  Bb7 {[%clk 0:02:35]} 9. Be2 {[%clk 0:01:46]}  Nbd7 {[%clk 0:02:36]} 10. a4 {[%clk 0:01:43]}  b4 {[%clk 0:02:35]} 11. Na2 {[%clk 0:01:43]}  d5 {[%clk 0:02:35]} 12. Nxb4 {[%clk 0:01:39]}  dxe4 {[%clk 0:02:33]} 13. O-O {[%clk 0:01:14]}  Be7 {[%clk 0:02:27]} 14. Ndc6 {[%clk 0:01:12]}  Bxb4 {[%clk 0:02:12]} 15. Nxb4 {[%clk 0:01:08]}  O-O {[%clk 0:02:12]} 16. Rad1 {[%clk 0:01:05]}  Qe7 {[%clk 0:02:04]} 17. fxe4 {[%clk 0:00:59]}  Bxe4 {[%clk 0:02:02]} 18. Nxa6 {[%clk 0:00:50]}  Bb7 {[%clk 0:01:48]} 19. Qd6 {[%clk 0:00:45]}  Qxd6 {[%clk 0:01:42]} 20. Rxd6 {[%clk 0:00:46]}  Ne5 {[%clk 0:01:40]} 21. Nc5 {[%clk 0:00:42]}  Bd5 {[%clk 0:01:38]} 22. b3 {[%clk 0:00:41]}  Ne4 {[%clk 0:01:29]} 23. Nxe4 {[%clk 0:00:38]}  Bxe4 {[%clk 0:01:30]} 24. Rd2 {[%clk 0:00:32]}  Rac8 {[%clk 0:01:26]} 25. Bd1 {[%clk 0:00:28]}  Rfd8 {[%clk 0:01:25]} 26. Rff2 {[%clk 0:00:28]}  Rxd2 {[%clk 0:01:24]} 27. Rxd2 {[%clk 0:00:29]}  f5 {[%clk 0:01:22]} 28. a5 {[%clk 0:00:28]}  h6 {[%clk 0:01:14]} 29. a6 {[%clk 0:00:27]}  g5 {[%clk 0:01:15]} 30. Bb6 {[%clk 0:00:22]}  Ra8 {[%clk 0:01:06]} 31. Be2 {[%clk 0:00:21]}  Kf7 {[%clk 0:01:05]} 32. c4 {[%clk 0:00:14]}  Nc6 {[%clk 0:01:05]} 33. c5 {[%clk 0:00:13]}  Bd5 {[%clk 0:01:04]} 34. Bc4 {[%clk 0:00:12]}  Bxc4 {[%clk 0:01:03]} 35. bxc4 {[%clk 0:00:12]}  e5 {[%clk 0:01:00]} 36. Rd6 {[%clk 0:00:12]}  Nd4 {[%clk 0:00:59]} 37. a7 {[%clk 0:00:11]}  Ke7 {[%clk 0:00:51]} 38. Rd8 {[%clk 0:00:11]}  Rxa7 {[%clk 0:00:46]} 39. Bxa7 {[%clk 0:00:01]}  Kxd8 {[%clk 0:00:46]} 40. Bb6+ {[%clk 0:00:02]}  Kd7 {[%clk 0:00:45]} 41. Kf2 {[%clk 0:00:02]}  Kc6 {[%clk 0:00:45]} 42. Ke3 {[%clk 0:00:03]}  Ne6 {[%clk 0:00:45]} 43. Ba5 {[%clk 0:00:01]}  Nxc5 {[%clk 0:00:45]} 44. Bc3 {[%clk 0:00:02]}  Nd7 {[%clk 0:00:44]} 45. Bb4 {[%clk 0:00:03]}  Nb6 {[%clk 0:00:40]} 46. Bf8 {[%clk 0:00:02]}  h5 {[%clk 0:00:37]} 47. c5 {[%clk 0:00:02]}  Nc4+ {[%clk 0:00:35]} 48. Kd3 {[%clk 0:00:02]}  Kd5 {[%clk 0:00:33]} 49. Bg7 {[%clk 0:00:02]}  e4+ {[%clk 0:00:34]} 50. Kc3 {[%clk 0:00:01]}  Kxc5 {[%clk 0:00:34]} 51. Bd4+ {[%clk 0:00:01]}  Kd5 {[%clk 0:00:34]} 52. Bf6 {[%clk 0:00:02]}  g4 {[%clk 0:00:33]} 53. Bg5 {[%clk 0:00:03]}  Ne5 {[%clk 0:00:33]} 54. Bf6 {[%clk 0:00:04]}  Nd3 {[%clk 0:00:33]} 55. Kd2 {[%clk 0:00:03]}  Nf4 {[%clk 0:00:33]} 56. g3 {[%clk 0:00:03]}  Ne6 {[%clk 0:00:33]} 57. Ke3 {[%clk 0:00:04]}  Kc4 {[%clk 0:00:30]} 58. Be5 {[%clk 0:00:04]}  Ng5 {[%clk 0:00:29]} 59. Bf6 {[%clk 0:00:01]}  Nf3 {[%clk 0:00:30]} 60. Kf4 {[%clk 0:00:01]}  Nxh2 {[%clk 0:00:29]} 61. Kxf5 {[%clk 0:00:02]}  e3 {[%clk 0:00:29]} 62. Bg5 {[%clk 0:00:02]}  e2 {[%clk 0:00:29]} 63. Bd2 {[%clk 0:00:03]}  Nf3 {[%clk 0:00:29]} 64. Ba5 {[%clk 0:00:04]}  Kd3 {[%clk 0:00:22]} 0-1


[Site "https://www.chess.com"]

[Event "Titled Tuesday Blitz June 21 Late 2022"]
[White "Pesotskiy, Mikhail"]
[Black "Pappelis, Dimitrios"]
[WhiteFideId "34164453"]
[BlackFideId "4215281"]
[WhiteElo "2010"]
[BlackElo "1998"]
[Result "0-1"]
[Round "02"]
[TimeControl "180+1"]
[Date "2022.06.22"]
[WhiteClock "0:00:02"]
[BlackClock "0:01:03"]

1. d4 {[%clk 0:01:49]}  d5 {[%clk 0:02:59]} 2. c4 {[%clk 0:01:49]}  e6 {[%clk 0:02:59]} 3. Nc3 {[%clk 0:01:50]}  Nf6 {[%clk 0:03:00]} 4. cxd5 {[%clk 0:01:51]}  exd5 {[%clk 0:03:00]} 5. Bg5 {[%clk 0:01:51]}  c6 {[%clk 0:03:01]} 6. e3 {[%clk 0:01:52]}  Be7 {[%clk 0:03:01]} 7. Bd3 {[%clk 0:01:52]}  Nbd7 {[%clk 0:03:01]} 8. Qc2 {[%clk 0:01:52]}  h6 {[%clk 0:03:02]} 9. Bf4 {[%clk 0:01:53]}  Nh5 {[%clk 0:03:00]} 10. Be5 {[%clk 0:01:53]}  Nhf6 {[%clk 0:02:51]} 11. Bg3 {[%clk 0:01:49]}  Nh5 {[%clk 0:02:44]} 12. Be5 {[%clk 0:01:50]}  Nhf6 {[%clk 0:02:44]} 13. Nf3 {[%clk 0:01:48]}  Nxe5 {[%clk 0:02:37]} 14. dxe5 {[%clk 0:01:45]}  Nd7 {[%clk 0:02:35]} 15. e4 {[%clk 0:01:43]}  Nc5 {[%clk 0:02:34]} 16. O-O {[%clk 0:01:41]}  dxe4 {[%clk 0:02:26]} 17. Bxe4 {[%clk 0:01:42]}  Nxe4 {[%clk 0:02:23]} 18. Qxe4 {[%clk 0:01:43]}  O-O {[%clk 0:02:22]} 19. Rad1 {[%clk 0:01:40]}  Qc7 {[%clk 0:02:21]} 20. Rc1 {[%clk 0:01:36]}  Qb6 {[%clk 0:02:17]} 21. Na4 {[%clk 0:01:31]}  Qb4 {[%clk 0:02:13]} 22. Qxb4 {[%clk 0:01:12]}  Bxb4 {[%clk 0:02:14]} 23. a3 {[%clk 0:01:13]}  Be7 {[%clk 0:02:13]} 24. Nc5 {[%clk 0:01:11]}  Bxc5 {[%clk 0:02:13]} 25. Rxc5 {[%clk 0:01:12]}  Be6 {[%clk 0:02:10]} 26. Nd4 {[%clk 0:01:09]}  Rfd8 {[%clk 0:02:09]} 27. Nxe6 {[%clk 0:01:08]}  fxe6 {[%clk 0:02:10]} 28. Rfc1 {[%clk 0:01:05]}  Rd2 {[%clk 0:02:09]} 29. R5c2 {[%clk 0:01:05]}  Rad8 {[%clk 0:02:08]} 30. f4 {[%clk 0:01:05]}  Kf7 {[%clk 0:02:02]} 31. Kf1 {[%clk 0:00:53]}  g5 {[%clk 0:01:59]} 32. fxg5 {[%clk 0:00:51]}  hxg5 {[%clk 0:02:00]} 33. Ke1 {[%clk 0:00:52]}  Rxc2 {[%clk 0:01:58]} 34. Rxc2 {[%clk 0:00:53]}  Rd5 {[%clk 0:01:58]} 35. Re2 {[%clk 0:00:52]}  Kg6 {[%clk 0:01:59]} 36. g4 {[%clk 0:00:50]}  c5 {[%clk 0:01:55]} 37. Kf2 {[%clk 0:00:44]}  b5 {[%clk 0:01:55]} 38. Kg3 {[%clk 0:00:39]}  a5 {[%clk 0:01:53]} 39. h3 {[%clk 0:00:38]}  c4 {[%clk 0:01:48]} 40. Kg2 {[%clk 0:00:34]}  Rd3 {[%clk 0:01:44]} 41. Rf2 {[%clk 0:00:34]}  b4 {[%clk 0:01:32]} 42. axb4 {[%clk 0:00:33]}  axb4 {[%clk 0:01:33]} 43. Rf6+ {[%clk 0:00:34]}  Kg7 {[%clk 0:01:33]} 44. Rxe6 {[%clk 0:00:35]}  Rd2+ {[%clk 0:01:34]} 45. Kf3 {[%clk 0:00:34]}  Rxb2 {[%clk 0:01:34]} 46. Ke4 {[%clk 0:00:34]}  c3 {[%clk 0:01:33]} 47. Re7+ {[%clk 0:00:25]}  Kf8 {[%clk 0:01:31]} 48. Rc7 {[%clk 0:00:25]}  Re2+ {[%clk 0:01:11]} 49. Kf5 {[%clk 0:00:19]}  c2 {[%clk 0:01:08]} 50. e6 {[%clk 0:00:09]}  b3 {[%clk 0:01:06]} 51. Kf6 {[%clk 0:00:09]}  Rf2+ {[%clk 0:01:06]} 52. Kg6 {[%clk 0:00:05]}  b2 {[%clk 0:01:04]} 53. Rf7+ {[%clk 0:00:02]}  Rxf7 {[%clk 0:01:03]} 54. exf7 {[%clk 0:00:02]} 0-1


[Site "https://www.chess.com"]

[Event "Titled Tuesday Blitz June 21 Late 2022"]
[White "Petrovic, Aleksa"]
[Black "Svane, Frederik"]
[WhiteFideId "967629"]
[BlackFideId "12923044"]
[WhiteElo "2117"]
[BlackElo "2459"]
[Result "0-1"]
[Round "02"]
[TimeControl "180+1"]
[Date "2022.06.22"]
[WhiteClock "0:00:01"]
[BlackClock "0:00:16"]

1. d4 {[%clk 0:03:00]}  Nf6 {[%clk 0:02:59]} 2. c4 {[%clk 0:03:00]}  e6 {[%clk 0:03:00]} 3. Nf3 {[%clk 0:02:59]}  d5 {[%clk 0:03:00]} 4. Nc3 {[%clk 0:02:58]}  a6 {[%clk 0:03:01]} 5. cxd5 {[%clk 0:02:57]}  exd5 {[%clk 0:03:02]} 6. Bg5 {[%clk 0:02:57]}  Be6 {[%clk 0:03:01]} 7. e3 {[%clk 0:02:57]}  Nbd7 {[%clk 0:03:00]} 8. Bd3 {[%clk 0:02:57]}  c6 {[%clk 0:03:00]} 9. O-O {[%clk 0:02:56]}  Bd6 {[%clk 0:03:01]} 10. Qb1 {[%clk 0:02:54]}  h6 {[%clk 0:02:59]} 11. Bf4 {[%clk 0:02:53]}  Qb8 {[%clk 0:02:59]} 12. Bg3 {[%clk 0:02:47]}  O-O {[%clk 0:02:59]} 13. Ne2 {[%clk 0:02:42]}  Bg4 {[%clk 0:02:51]} 14. Bf5 {[%clk 0:02:27]}  Bxf5 {[%clk 0:02:47]} 15. Qxf5 {[%clk 0:02:26]}  g6 {[%clk 0:02:42]} 16. Bxd6 {[%clk 0:02:08]}  Qxd6 {[%clk 0:02:42]} 17. Qf4 {[%clk 0:02:08]}  Qb4 {[%clk 0:02:33]} 18. Qxh6 {[%clk 0:02:00]}  Qxb2 {[%clk 0:02:32]} 19. Nf4 {[%clk 0:01:44]}  Qc2 {[%clk 0:02:32]} 20. Rab1 {[%clk 0:01:12]}  Rab8 {[%clk 0:02:26]} 21. Rfc1 {[%clk 0:01:00]}  Qf5 {[%clk 0:02:18]} 22. h3 {[%clk 0:00:55]}  Ne4 {[%clk 0:02:11]} 23. h4 {[%clk 0:00:28]}  Ndf6 {[%clk 0:02:04]} 24. Ng5 {[%clk 0:00:25]}  Nxg5 {[%clk 0:01:58]} 25. hxg5 {[%clk 0:00:21]}  Ne4 {[%clk 0:01:58]} 26. f3 {[%clk 0:00:19]}  Qxg5 {[%clk 0:01:53]} 27. Qxg5 {[%clk 0:00:16]}  Nxg5 {[%clk 0:01:54]} 28. Rc2 {[%clk 0:00:15]}  Rfc8 {[%clk 0:01:38]} 29. Rcb2 {[%clk 0:00:13]}  Rc7 {[%clk 0:01:36]} 30. Nd3 {[%clk 0:00:12]}  b5 {[%clk 0:01:25]} 31. Rc2 {[%clk 0:00:10]}  Ne6 {[%clk 0:01:23]} 32. Nb4 {[%clk 0:00:09]}  a5 {[%clk 0:00:56]} 33. Nxc6 {[%clk 0:00:06]}  b4 {[%clk 0:00:52]} 34. Rbc1 {[%clk 0:00:04]}  Rb5 {[%clk 0:00:53]} 35. Ne5 {[%clk 0:00:03]}  Rxc2 {[%clk 0:00:52]} 36. Rxc2 {[%clk 0:00:04]}  a4 {[%clk 0:00:46]} 37. Nd3 {[%clk 0:00:04]}  b3 {[%clk 0:00:44]} 38. axb3 {[%clk 0:00:05]}  Rxb3 {[%clk 0:00:44]} 39. Nc5 {[%clk 0:00:04]}  Rxe3 {[%clk 0:00:44]} 40. Nxa4 {[%clk 0:00:04]}  Rd3 {[%clk 0:00:14]} 41. Nc5 {[%clk 0:00:03]}  Rxd4 {[%clk 0:00:15]} 42. Nxe6 {[%clk 0:00:03]}  fxe6 {[%clk 0:00:16]} 43. Kf2 {[%clk 0:00:03]}  Kf7 {[%clk 0:00:16]} 44. Ke3 {[%clk 0:00:04]}  Ra4 {[%clk 0:00:16]} 45. Rc7+ {[%clk 0:00:03]}  Kf6 {[%clk 0:00:17]} 46. Rc8 {[%clk 0:00:04]}  g5 {[%clk 0:00:17]} 47. g4 {[%clk 0:00:03]}  Ra7 {[%clk 0:00:16]} 48. Rg8 {[%clk 0:00:03]}  Rf7 {[%clk 0:00:17]} 49. f4 {[%clk 0:00:02]}  gxf4+ {[%clk 0:00:18]} 50. Kxf4 {[%clk 0:00:02]}  e5+ {[%clk 0:00:18]} 51. Ke3 {[%clk 0:00:03]}  Ra7 {[%clk 0:00:18]} 52. Rf8+ {[%clk 0:00:02]}  Kg6 {[%clk 0:00:17]} 53. Rg8+ {[%clk 0:00:02]}  Kf7 {[%clk 0:00:16]} 54. Rd8 {[%clk 0:00:02]}  Ra3+ {[%clk 0:00:15]} 55. Ke2 {[%clk 0:00:02]}  d4 {[%clk 0:00:16]} 56. g5 {[%clk 0:00:02]}  Re3+ {[%clk 0:00:15]} 57. Kf2 {[%clk 0:00:02]}  Kg6 {[%clk 0:00:16]} 58. Rg8+ {[%clk 0:00:01]}  Kf5 {[%clk 0:00:16]} 0-1


[Site "https://www.chess.com"]

[Event "Titled Tuesday Blitz June 21 Late 2022"]
[White "Pinheiro, Iung Alicio de O."]
[Black "Zhigalko, Sergei"]
[WhiteFideId "2104350"]
[BlackFideId "13502956"]
[WhiteElo "2283"]
[BlackElo "2662"]
[Result "0-1"]
[Round "02"]
[TimeControl "180+1"]
[Date "2022.06.21"]
[WhiteClock "0:00:04"]
[BlackClock "0:00:05"]

1. e4 {[%clk 0:02:59]}  c5 {[%clk 0:03:00]} 2. Nf3 {[%clk 0:02:58]}  Nc6 {[%clk 0:03:00]} 3. c3 {[%clk 0:02:58]}  Nf6 {[%clk 0:03:01]} 4. e5 {[%clk 0:02:57]}  Nd5 {[%clk 0:03:01]} 5. Bc4 {[%clk 0:02:58]}  Nb6 {[%clk 0:03:01]} 6. Bb3 {[%clk 0:02:59]}  g6 {[%clk 0:03:01]} 7. d4 {[%clk 0:02:55]}  cxd4 {[%clk 0:03:02]} 8. cxd4 {[%clk 0:02:55]}  Bg7 {[%clk 0:03:03]} 9. h4 {[%clk 0:02:56]}  d5 {[%clk 0:02:53]} 10. h5 {[%clk 0:02:32]}  Bg4 {[%clk 0:02:52]} 11. Rh4 {[%clk 0:02:25]}  gxh5 {[%clk 0:02:47]} 12. Be3 {[%clk 0:02:10]}  e6 {[%clk 0:02:42]} 13. Rh2 {[%clk 0:02:05]}  Rc8 {[%clk 0:02:34]} 14. Nc3 {[%clk 0:02:02]}  Na5 {[%clk 0:02:28]} 15. Nb5 {[%clk 0:01:44]}  Nbc4 {[%clk 0:02:19]} 16. Bc1 {[%clk 0:01:19]}  Qb6 {[%clk 0:01:55]} 17. Ba4 {[%clk 0:01:12]}  O-O {[%clk 0:01:39]} 18. b3 {[%clk 0:01:10]}  a6 {[%clk 0:01:37]} 19. bxc4 {[%clk 0:00:34]}  axb5 {[%clk 0:01:15]} 20. c5 {[%clk 0:00:34]}  Qa6 {[%clk 0:01:12]} 21. Bc2 {[%clk 0:00:34]}  b4 {[%clk 0:01:12]} 22. Bd3 {[%clk 0:00:33]}  Nc4 {[%clk 0:01:09]} 23. Qc2 {[%clk 0:00:26]}  h6 {[%clk 0:01:09]} 24. Ng1 {[%clk 0:00:24]}  b6 {[%clk 0:00:39]} 25. f3 {[%clk 0:00:24]}  Bf5 {[%clk 0:00:40]} 26. Bxf5 {[%clk 0:00:23]}  exf5 {[%clk 0:00:41]} 27. Qxf5 {[%clk 0:00:22]}  bxc5 {[%clk 0:00:41]} 28. Ne2 {[%clk 0:00:17]}  cxd4 {[%clk 0:00:40]} 29. Rxh5 {[%clk 0:00:15]}  Nxe5 {[%clk 0:00:38]} 30. Bf4 {[%clk 0:00:10]}  Nd3+ {[%clk 0:00:35]} 31. Kd2 {[%clk 0:00:08]}  Nxf4 {[%clk 0:00:28]} 32. Nxf4 {[%clk 0:00:09]}  d3 {[%clk 0:00:29]} 33. Qxd3 {[%clk 0:00:09]}  Bxa1 {[%clk 0:00:26]} 34. Qxa6 {[%clk 0:00:08]}  Bg7 {[%clk 0:00:20]} 35. Rxh6 {[%clk 0:00:07]}  Ra8 {[%clk 0:00:20]} 36. Qd6 {[%clk 0:00:07]}  Rxa2+ {[%clk 0:00:21]} 37. Ke1 {[%clk 0:00:06]}  Rc8 {[%clk 0:00:20]} 38. Nd3 {[%clk 0:00:06]}  b3 {[%clk 0:00:18]} 39. Rh4 {[%clk 0:00:04]}  b2 {[%clk 0:00:15]} 40. Rb4 {[%clk 0:00:05]}  Rc1+ {[%clk 0:00:12]} 41. Ke2 {[%clk 0:00:05]}  b1=Q+ {[%clk 0:00:12]} 42. Ke3 {[%clk 0:00:05]}  Re1+ {[%clk 0:00:12]} 43. Kf4 {[%clk 0:00:04]}  Qxd3 {[%clk 0:00:05]} 44. Rb8+ {[%clk 0:00:05]}  Kh7 {[%clk 0:00:05]} 45. Qd8 {[%clk 0:00:04]}  Be5+ {[%clk 0:00:05]} 46. Kg4 {[%clk 0:00:04]}  Qg6+ {[%clk 0:00:05]} 47. Kh3 {[%clk 0:00:04]}  Rh1# {[%clk 0:00:05]} 0-1


[Site "https://www.chess.com"]

[Event "Titled Tuesday Blitz June 21 Late 2022"]
[White "Przybylski, Wojciech"]
[Black "Murzin, Volodar"]
[WhiteFideId "1117599"]
[BlackFideId "44155573"]
[WhiteElo "2133"]
[BlackElo "2585"]
[Result "0-1"]
[Round "02"]
[TimeControl "180+1"]
[Date "2022.06.21"]
[WhiteClock "0:00:03"]
[BlackClock "0:00:09"]

1. d4 {[%clk 0:03:00]}  d5 {[%clk 0:02:57]} 2. g3 {[%clk 0:02:59]}  Nf6 {[%clk 0:02:56]} 3. Bg2 {[%clk 0:02:59]}  g6 {[%clk 0:02:55]} 4. Nf3 {[%clk 0:02:59]}  Bg7 {[%clk 0:02:55]} 5. O-O {[%clk 0:02:58]}  O-O {[%clk 0:02:56]} 6. c4 {[%clk 0:02:58]}  c6 {[%clk 0:02:54]} 7. Bf4 {[%clk 0:02:56]}  Nbd7 {[%clk 0:02:39]} 8. Nbd2 {[%clk 0:02:51]}  e6 {[%clk 0:02:35]} 9. Ne5 {[%clk 0:02:42]}  Nh5 {[%clk 0:02:24]} 10. Nxd7 {[%clk 0:02:38]}  Qxd7 {[%clk 0:02:21]} 11. Be3 {[%clk 0:02:31]}  Nf6 {[%clk 0:02:19]} 12. c5 {[%clk 0:02:27]}  Ng4 {[%clk 0:02:15]} 13. Qb3 {[%clk 0:02:21]}  Re8 {[%clk 0:01:56]} 14. f4 {[%clk 0:02:17]}  f6 {[%clk 0:01:51]} 15. Nf3 {[%clk 0:02:02]}  e5 {[%clk 0:01:28]} 16. fxe5 {[%clk 0:01:50]}  fxe5 {[%clk 0:01:29]} 17. dxe5 {[%clk 0:01:36]}  Nxe5 {[%clk 0:01:06]} 18. Kh1 {[%clk 0:00:58]}  Nc4 {[%clk 0:00:51]} 19. Bg1 {[%clk 0:00:34]}  Rxe2 {[%clk 0:00:39]} 20. Ng5 {[%clk 0:00:31]}  Qe7 {[%clk 0:00:32]} 21. Qf3 {[%clk 0:00:18]}  Bf5 {[%clk 0:00:21]} 22. Rf2 {[%clk 0:00:04]}  Rxf2 {[%clk 0:00:20]} 23. Qxf2 {[%clk 0:00:04]}  Qxg5 {[%clk 0:00:20]} 24. Re1 {[%clk 0:00:04]}  Ne5 {[%clk 0:00:17]} 25. Qe2 {[%clk 0:00:01]}  Nd3 {[%clk 0:00:17]} 26. Rf1 {[%clk 0:00:02]}  h5 {[%clk 0:00:12]} 27. Be3 {[%clk 0:00:02]}  Qe7 {[%clk 0:00:11]} 28. Qd2 {[%clk 0:00:02]}  Ne5 {[%clk 0:00:11]} 29. Bg5 {[%clk 0:00:02]}  Qe6 {[%clk 0:00:11]} 30. Qf4 {[%clk 0:00:02]}  Re8 {[%clk 0:00:12]} 31. Re1 {[%clk 0:00:02]}  Kh7 {[%clk 0:00:10]} 32. Qd2 {[%clk 0:00:02]}  Qf7 {[%clk 0:00:09]} 33. b3 {[%clk 0:00:02]}  Ng4 {[%clk 0:00:09]} 34. Rf1 {[%clk 0:00:02]}  Nf6 {[%clk 0:00:09]} 35. h3 {[%clk 0:00:02]}  Ne4 {[%clk 0:00:09]} 36. Bxe4 {[%clk 0:00:02]}  Bxe4+ {[%clk 0:00:09]} 37. Kg1 {[%clk 0:00:03]}  Qe6 {[%clk 0:00:09]} 38. Kh2 {[%clk 0:00:02]}  Rf8 {[%clk 0:00:10]} 39. Bf4 {[%clk 0:00:03]}  g5 {[%clk 0:00:09]} 40. Re1 {[%clk 0:00:02]}  gxf4 {[%clk 0:00:09]} 41. gxf4 {[%clk 0:00:03]}  Rxf4 {[%clk 0:00:09]} 42. Qxf4 {[%clk 0:00:02]}  Be5 {[%clk 0:00:10]} 43. Rxe4 {[%clk 0:00:03]}  dxe4 {[%clk 0:00:10]} 44. Kg2 {[%clk 0:00:03]}  Bxf4 {[%clk 0:00:09]} 0-1


[Site "https://www.chess.com"]

[Event "Titled Tuesday Blitz June 21 Late 2022"]
[White "Reprintsev, Alexander"]
[Black "Thiel, Thomas"]
[WhiteFideId "14100541"]
[BlackFideId "4615964"]
[WhiteElo "2108"]
[BlackElo "2235"]
[Result "1-0"]
[Round "02"]
[TimeControl "180+1"]
[Date "2022.06.22"]
[WhiteClock "0:02:26"]
[BlackClock "0:02:08"]

1. e4 {[%clk 0:02:55]}  d5 {[%clk 0:02:55]} 2. exd5 {[%clk 0:02:54]}  Nf6 {[%clk 0:02:53]} 3. d4 {[%clk 0:02:54]}  Nxd5 {[%clk 0:02:52]} 4. c4 {[%clk 0:02:54]}  Nb6 {[%clk 0:02:52]} 5. Nc3 {[%clk 0:02:53]}  e5 {[%clk 0:02:51]} 6. Nf3 {[%clk 0:02:51]}  exd4 {[%clk 0:02:50]} 7. Nxd4 {[%clk 0:02:50]}  Bb4 {[%clk 0:02:48]} 8. Be2 {[%clk 0:02:45]}  O-O {[%clk 0:02:42]} 9. O-O {[%clk 0:02:45]}  Bxc3 {[%clk 0:02:42]} 10. bxc3 {[%clk 0:02:44]}  Bd7 {[%clk 0:02:37]} 11. c5 {[%clk 0:02:41]}  Na4 {[%clk 0:02:26]} 12. c6 {[%clk 0:02:37]}  Nxc3 {[%clk 0:02:21]} 13. cxb7 {[%clk 0:02:34]}  Nxd1 {[%clk 0:02:20]} 14. bxa8=Q {[%clk 0:02:33]}  Nc3 {[%clk 0:02:08]} 15. Qf3 {[%clk 0:02:26]} 1-0


[Site "https://www.chess.com"]

[Event "Titled Tuesday Blitz June 21 Late 2022"]
[White "Ricaurte Lopez, Juan Carlos"]
[Black "Zakarian, David"]
[WhiteFideId "3600327"]
[BlackFideId "13301276"]
[WhiteElo "2209"]
[BlackElo "2455"]
[Result "0-1"]
[Round "02"]
[TimeControl "180+1"]
[Date "2022.06.22"]
[WhiteClock "0:00:01"]
[BlackClock "0:00:14"]

1. e4 {[%clk 0:03:00]}  c5 {[%clk 0:02:56]} 2. Nf3 {[%clk 0:02:58]}  Nc6 {[%clk 0:02:56]} 3. d4 {[%clk 0:02:56]}  cxd4 {[%clk 0:02:57]} 4. Nxd4 {[%clk 0:02:56]}  e5 {[%clk 0:02:57]} 5. Nb5 {[%clk 0:02:54]}  d6 {[%clk 0:02:57]} 6. N1c3 {[%clk 0:02:50]}  a6 {[%clk 0:02:57]} 7. Na3 {[%clk 0:02:49]}  Be7 {[%clk 0:02:57]} 8. Be3 {[%clk 0:02:46]}  Nf6 {[%clk 0:02:57]} 9. Nd5 {[%clk 0:02:42]}  Nxe4 {[%clk 0:02:53]} 10. Bb6 {[%clk 0:02:38]}  Qd7 {[%clk 0:02:52]} 11. Nc7+ {[%clk 0:02:35]}  Kf8 {[%clk 0:02:52]} 12. Nxa8 {[%clk 0:02:33]}  d5 {[%clk 0:02:51]} 13. Nc7 {[%clk 0:02:21]}  d4 {[%clk 0:02:46]} 14. Bc4 {[%clk 0:01:59]}  Bb4+ {[%clk 0:02:13]} 15. Kf1 {[%clk 0:01:39]}  h5 {[%clk 0:01:32]} 16. Qe2 {[%clk 0:01:21]}  Nd2+ {[%clk 0:01:20]} 17. Kg1 {[%clk 0:01:18]}  h4 {[%clk 0:01:19]} 18. h3 {[%clk 0:01:16]}  Rh6 {[%clk 0:01:13]} 19. Nd5 {[%clk 0:01:14]}  Nxc4 {[%clk 0:01:05]} 20. Qxc4 {[%clk 0:01:04]}  Bxa3 {[%clk 0:00:57]} 21. bxa3 {[%clk 0:01:02]}  Qf5 {[%clk 0:00:52]} 22. Qc5+ {[%clk 0:00:50]}  Ke8 {[%clk 0:00:46]} 23. Re1 {[%clk 0:00:43]}  Be6 {[%clk 0:00:43]} 24. Nc7+ {[%clk 0:00:37]}  Kd7 {[%clk 0:00:42]} 25. Nxe6 {[%clk 0:00:34]}  Rxe6 {[%clk 0:00:42]} 26. Qd5+ {[%clk 0:00:29]}  Rd6 {[%clk 0:00:39]} 27. Qe4 {[%clk 0:00:27]}  Qg5 {[%clk 0:00:34]} 28. f4 {[%clk 0:00:23]}  Qg3 {[%clk 0:00:16]} 29. fxe5 {[%clk 0:00:20]}  Re6 {[%clk 0:00:16]} 30. Qd5+ {[%clk 0:00:15]}  Ke8 {[%clk 0:00:14]} 31. Qe4 {[%clk 0:00:12]}  Rxe5 {[%clk 0:00:13]} 32. Qxe5+ {[%clk 0:00:11]}  Nxe5 {[%clk 0:00:13]} 33. Rxe5+ {[%clk 0:00:05]}  Qxe5 {[%clk 0:00:13]} 34. Kf2 {[%clk 0:00:04]}  Qe3+ {[%clk 0:00:12]} 35. Kf1 {[%clk 0:00:03]}  Qc1+ {[%clk 0:00:12]} 36. Kf2 {[%clk 0:00:03]}  Qxh1 {[%clk 0:00:13]} 37. Bxd4 {[%clk 0:00:01]}  Qd1 {[%clk 0:00:13]} 38. Bxg7 {[%clk 0:00:01]}  Qxc2+ {[%clk 0:00:14]} 0-1


[Site "https://www.chess.com"]